Cogmind - Beta 13 @@@ ROGUE MODE // 2024.04.06 @ 00:15:36 Player: nixie Result: Self-destructed Performance ------------- Evolutions (1) 500 Regions Visited (2) 400 Robots Destroyed (8) 40 Value Destroyed (300) 300 Prototype IDs (0) 0 Alien Tech Used (0) 0 Bonus (0) 0 TOTAL SCORE: 1240 Bonus ------- None Cogmind --------- Core Integrity 400/400 Matter 21/300 Energy 475/475 System Corruption 0% Temperature Cool (9) Movement Hovering (240) Ox3 Location -9/Materials Parts ------- > --- POWER (1) -------- Deuterium Engine > --- PROPULSION (2) --- Airjet > --- UTILITY (4) ------ Small Storage Unit Large Battery Advanced Visual Processing Unit Advanced Visual Processing Unit > --- WEAPON (2) ------- Missile Launcher Missile Launcher > --- INVENTORY (8) ---- Deuterium Engine Airjet Advanced Visual Processing Unit Missile Launcher Missile Launcher Peak State ------------ > --- POWER ------------ Deuterium Engine > --- PROPULSION ------- Airjet Airjet > --- UTILITY ---------- Small Storage Unit Large Battery Advanced Visual Processing Unit Advanced Visual Processing Unit > --- WEAPON ----------- Missile Launcher Missile Launcher > --- INVENTORY -------- Deuterium Engine Airjet Advanced Visual Processing Unit Pulse Rifle Pulse Rifle Missile Launcher Missile Launcher [Rating: 25] Favorites ----------- Power Ion Engine Engine Ion Engine Propulsion Light Treads Treads Light Treads Hover Unit Airjet Utility Small Storage Unit Storage Small Storage Unit Processor Advanced Visual Processing Unit Weapon Missile Launcher Energy Gun Medium Laser Ballistic Cannon Light Cannon Launcher Missile Launcher Build | -11 -10 -9 ------- Run | Yrd Mat Mat Slots Evolved 2 | . . 2 Power . | . . . Propulsion . | . . . Utility 2 | . . 2 Weapon . | . . . Parts Attached 17 | 7 3 7 Power 2 | 1 . 1 Engine 2 | 1 . 1 Core . | . . . Reactor . | . . . Propulsion 4 | 2 . 2 Treads 2 | 2 . . Leg . | . . . Wheel . | . . . Hover 2 | . . 2 Flight . | . . . Utility 4 | 1 1 2 Device . | . . . Storage 2 | 1 1 . Processor 2 | . . 2 Hackware . | . . . Protection . | . . . Artifact . | . . . Weapon 7 | 3 2 2 Energy Gun 3 | 3 . . Energy Cannon . | . . . Ballistic Gun . | . . . Ballistic Cannon 1 | . 1 . Launcher 3 | . 1 2 Special Weapon . | . . . Impact Weapon . | . . . Slashing Weapon . | . . . Piercing Weapon . | . . . Special Melee Weapon . | . . . Unidentified Prototypes . | . . . Parts Lost 1 | . . 1 Power . | . . . Propulsion 1 | . . 1 Utility . | . . . Weapon . | . . . Highest Loss Streak 1 | . . 1 To Critical Strikes . | . . . Average Slot Usage (%) 91 | . 91 91 Engine 12 | . 14 11 Treads 16 | . 28 3 Hover 8 | . . 19 Storage 21 | . 20 22 Processor 6 | . . 13 Energy Gun 6 | . 12 . Ballistic Cannon 2 | . 3 1 Launcher 16 | . 12 20 Naked Turns . | . . . Heaviest Build 29 | 13 19 29 Greatest Support 40 | 40 40 40 Greatest Overweight (x) 3 | . . 3 Average Overweight (x) . | . . . Largest Inventory Capacity 8 | 8 8 8 Average Capacity 7 | 7 8 8 Most Carried 8 | 4 2 8 Average Carried 2 | . . 4 Final Capacity 8 | 8 8 8 Final Carried 5 | . 1 5 Class Distribution -------------------- 100% | Mutant Dominant Class ---------------- Mutant | -10/Materials Mutant | -9/Materials Resources | -11 -10 -9 ----------- Run | Yrd Mat Mat Matter Collected 228 | 227 1 . Remotely . | . . . Salvage Created 176 | . 176 . Parts 9 | . 9 . Haulers Intercepted . | . . . Recyclers Shooed . | . . . Parts Field Recycled . | . . . Retrieved Matter . | . . . Parts Self-Destructed . | . . . Prevented . | . . . Kills | -11 -10 -9 ------- Run | Yrd Mat Mat Combat Hostiles Destroyed 7 | . 7 . AOE 7 | . 7 . Classes Destroyed 2 | . 2 . Watcher 1 | . 1 . Grunt 7 | . 7 . Best Kill Streak 3 | . 3 . Combat Bots Only 3 | . 3 . Max Kills in Single Turn 2 | . 2 . Gunslinging . | . . . Exploded 1 | . 1 . Melee . | . . . Uniques/NPCs Destroyed . | . . . Combat | -11 -10 -9 -------- Run | Yrd Mat Mat Hostile Shots Fired 43 | . 32 11 Missed 17 | . 14 3 Damage Taken 429 | . 304 125 Core 23 | . 23 . Absorbed by Shields . | . . . Core Remaining (%) 95 | 100 90 . Volleys Fired 14 | . 14 . Largest 2 | . 2 . Hottest 80 | . 80 . Shots Fired 27 | . 27 . Gun 11 | . 11 . Cannon 3 | . 3 . Launcher 13 | . 13 . Special . | . . . Kinetic 3 | . 3 . Thermal 11 | . 11 . Explosive 13 | . 13 . Electromagnetic . | . . . Robot Hit Streak 5 | . 5 . Robot Miss Streak 2 | . 2 . Penetration Max . | . . . Secondary Targets . | . . . Shots Hit Robots 18 | . 18 . Core Hits 15 | . 15 . Critical Kills . | . . . Critical Parts Destroyed . | . . . Critical Strikes . | . . . Melee Attacks . | . . . Impact . | . . . Slashing . | . . . Piercing . | . . . Sneak Attacks . | . . . Combat Hostiles . | . . . Follow-up Attacks . | . . . Damage Inflicted 695 | . 695 . Guns 89 | . 89 . Cannons 33 | . 33 . Explosions 573 | . 573 . Melee . | . . . Ramming . | . . . Kinetic 33 | . 33 . Thermal 89 | . 89 . Explosive 573 | . 573 . Electromagnetic . | . . . Impact . | . . . Slashing . | . . . Piercing . | . . . Highest Corruption . | . . . Average Corruption . | . . . Corruption Purged . | . . . Corruption Blocked . | . . . Overload Shots . | . . . Overflow Damage . | . . . Projectiles . | . . . Explosions . | . . . Melee . | . . . Knockbacks 1 | . 1 . Impact . | . . . Kinetic 1 | . 1 . Secondary . | . . . Self-Inflicted Damage 90 | . 90 . Shots 3 | . 3 . Rammed . | . . . Targets Rammed . | . . . Kicked . | . . . Crushed . | . . . Highest Temperature 124 | . 124 . Average Temperature 57 | . 57 . Received Heat Transfer 147 | . 120 27 Siege Activations . | . . . Robots Corrupted . | . . . Combat Hostiles . | . . . Parts Fried . | . . . Impact Corruptions . | . . . Robots Melted . | . . . Combat Hostiles . | . . . Parts Melted . | . . . Heat Transferred 259 | . 259 . Parts Sabotaged . | . . . Parts Stolen . | . . . Parts Stripped . | . . . Power Chain Reactions . | . . . Alert | -11 -10 -9 ------- Run | Yrd Mat Mat Peak Influence 287 | . 287 150 Initial 120 | . . 120 Average 91 | . 103 122 Maximum Alert Level 1 | . 1 . Low Security (%) 87 | 100 71 100 Level 1 12 | . 28 . Level 2 . | . . . Level 3 . | . . . Level 4 . | . . . Level 5 . | . . . High Security . | . . . Max Security . | . . . Squads Dispatched 2 | . 2 . Investigation 1 | . 1 . Extermination . | . . . Reinforcement 1 | . 1 . Assault . | . . . Garrison . | . . . Intercept . | . . . Searches Triggered . | . . . Construction Impeded . | . . . Haulers Reinforced . | . . . Active Scanning Responses . | . . . Cargo Convoy Interrupts . | . . . Stealth | -11 -10 -9 --------- Run | Yrd Mat Mat Distress Signals . | . . . Communications Jammed . | . . . Distress Signals . | . . . Times Spotted 16 | . 12 4 Peak Tracking Total 4 | . 3 4 Tactical Retreats . | . . . Traps | -11 -10 -9 ------- Run | Yrd Mat Mat Traps Triggered 1 | . 1 . Indirectly . | . . . Trap Hack Attempts . | . . . Triggered . | . . . Disarmed . | . . . Reprogrammed . | . . . Reused . | . . . Traps Extracted . | . . . Installed . | . . . Triggered . | . . . Machines | -11 -10 -9 ---------- Run | Yrd Mat Mat Machines Disabled 2 | . 2 . Max in Single Turn 1 | . 1 . Machines Repaired . | . . . Machines Dismantled . | . . . Machines Sabotaged . | . . . Overloaded Fab Kills . | . . . Hacking | -11 -10 -9 --------- Run | Yrd Mat Mat Machines Accessed 2 | . 2 . Terminals 1 | . 1 . Fabricators . | . . . Repair Stations 1 | . 1 . Recycling Units . | . . . Scanalyzers . | . . . Garrison Access . | . . . Total Hacks 4 | . 4 . Successful 2 | . 2 . Failed 2 | . 2 . Catastrophic 1 | . 1 . Database Lockouts . | . . . Manual . | . . . Terminals 3 | . 3 . Fabricators . | . . . Repair Stations 1 | . 1 . Recycling Units . | . . . Scanalyzers . | . . . Garrison Access . | . . . Terminal Hacks 2 | . 2 . Record 1 | . 1 . Hauler Manifests 1 | . 1 . Fabricator Hacks . | . . . Repair Station Hacks . | . . . Recycling Unit Hacks . | . . . Scanalyzer . | . . . Garrison Access Hacks . | . . . Unauthorized Hacks . | . . . Terminals . | . . . Fabricators . | . . . Repair Stations . | . . . Recycling Units . | . . . Scanalyzers . | . . . Garrison Access . | . . . Data Cores Recovered . | . . . Used . | . . . Hacking Detections 2 | . 2 . Full Trace Events 1 | . 1 . Feedback Events . | . . . Feedback Blocked . | . . . Robot Schematics Acquired . | . . . Robots Built . | . . . Authchips . | . . . Time . | . . . Total Robot Build Rating . | . . . Part Schematics Acquired . | . . . Parts Built . | . . . Authchips . | . . . Time . | . . . Total Part Build Rating . | . . . Parts Repaired . | . . . Time . | . . . Parts Recycled . | . . . Recycled Matter . | . . . Retrieved Matter . | . . . Retrieved Components . | . . . Parts Scanalyzed . | . . . Part Schematics Acquired . | . . . Parts Damaged . | . . . Bothacking | -11 -10 -9 ------------ Run | Yrd Mat Mat Used RIF Installer . | . . . Robots Hacked . | . . . Non-combat . | . . . Combat . | . . . Robot Hacks Applied . | . . . Relay Couplers Released . | . . . Fabnet Peak Effective % . | . . . Robots Rewired . | . . . Allies Hacked . | . . . Hacks Repelled . | . . . Allies | -11 -10 -9 -------- Run | Yrd Mat Mat Total Allies . | . . . Largest Group . | . . . Highest-Rated Group . | . . . Highest-Rated Ally . | . . . Total Orders . | . . . Ally Attacks . | . . . Total Damage . | . . . Kills . | . . . Allies Corrupted . | . . . Allies Melted . | . . . Intel | -11 -10 -9 ------- Run | Yrd Mat Mat Robot Analysis Total . | . . . Derelict Logs Recovered . | . . . Drone Launches . | . . . Drone Recoveries . | . . . Exploration | -11 -10 -9 ------------- Run | Yrd Mat Mat Turns Passed 598 | 114 258 226 Spaces Moved 360 | 71 130 159 Core 14 | 14 . . Treads 200 | 57 130 13 Legs . | . . . Wheels . | . . . Hover 146 | . . 146 Flight . | . . . Fastest Speed 50 | 50 160 116 Average Speed 138 | 138 160 121 Slowest Speed 240 | 160 160 240 Overloaded Moves . | . . . Propulsion Burnouts . | . . . Robots Hopped . | . . . Cave-ins Triggered . | . . . Exploration Rate (%) 16 | 7 28 13 Regions Visited 2 Branch Regions . Pre-discovered Areas . | . . . Known Exits Taken . | . . . Unknown Exits Taken 2 | 1 1 . Scrap Searched . | . . . Spaces Dug . | . . . Terrain Destroyed 80 | . 80 . Melee . | . . . Projectile . | . . . AOE 80 | . 80 . Terrain Rammed . | . . . Walls Destroyed . | . . . Machines Disabled . | . . . Actions | -11 -10 -9 --------- Run | Yrd Mat Mat Total 442 | 88 156 198 Wait . | . . . Move 358 | 70 129 159 Hop . | . . . Pick Up 31 | 8 5 18 Fast Attach . | . . . Attach 15 | 7 3 5 Detach 5 | 1 2 2 Swap 2 | . . 2 Drop 17 | 2 3 12 Fire 14 | . 14 . Melee . | . . . Ram . | . . . Kick . | . . . Crush . | . . . Escape Stasis . | . . . Rewire . | . . . Trap . | . . . Miscellaneous . | . . . Route ------- -11/Scrapyard -10/Materials -9/Materials History --------- Turn | Location | Event 11 | -11/Scrapyard | Discovered new exit (range 15) 115 | -11/Scrapyard | Entered Materials 332 | -10/Materials | Discovered new exit (range 5) 336 | -10/Materials | Build established: Mutant 373 | -10/Materials | Entered another Materials area 373 | -9/Materials | Evolved 2 slots: Utility x2 599 | -9/Materials | Self-destructed Last Messages --------------- Dropped Lgt. Cannon. Acquired Airjet. Acquired Deuterium Engine. Dropped Deuterium Engine. Dropped Ion Engine. Dropped Deuterium Engine. Dropped Airjet. Acquired Adv. Visual Processing Unit. Acquired Pulse Rifle. Acquired Adv. Visual Processing Unit. Acquired Imp. Propulsion Shielding. Dropped Imp. Propulsion Shielding. Dropped Pulse Rifle. [Achievement: Oops] Important note for Steam players: Cogmind player global achievement rates displayed by Steam are all significantly underreported, in some cases by a huge margin, due to how they are calculated by Valve. Airjet destroyed. Map ----- +----------------------------------------------------+ | ??????????????############### #???????? | | ????????????????????????????## ## [[#???????? | | ?????????????????????????????# ######???????? | | ?????????????????#######?????# ############?? | | ??????????# ###### ####### # """ """ # | | ??????????# # """"""""" # | | ??????????+ + """"" # | | ??????????# # # | | ??????????### #### ######## ## # | | ??????????###+???## ##??????# ############### | | ??????????# ??# #???????# #?????????????? | | ??????????# " |!! # #???????# #?????????????? | | ??????????# T |!! + #???????# #?????????????? | | ??????????# " |!! # #????####+###???????????? | | ?????????# ??# #????# #???????????? | | ?????????#####????# +????# #???????????? | | ??????????????######/####### """ #???????????? | | ??????????????# = # """ [#???????????? | | ??????????????#! """ """ # """ #???????????? | | ??????????????# """ """ # #???????????? | | ??????????????# """ """ ########???????????? | | ??????????????# #????????##????????? | | ??????????????####Y############# #????????? | | ?????????????????# #????????? | | ?????????????????# #????????? | | ?????????????????# Y @ u #????????? | | ?????????????????#### #####+### #????????? | | ???????????????????#g #???????????##????????? | | ??????????????????g #?????????????????????? | | ????????????????? +????????????????????? | | ????????????????#### ##????????????????????? | | ???????????????????######?????????????????????? | | ??????????????????????????????????????????????? | | ??????????????????????????????????????????????? | | ??????????????????????????????????????????????? | | ??????????????????????????????????????????????? | | ??????????????????????????????????????????????? | | ??????????????????????????????????????????????? | | ??????????????????????????????????????????????? | | ??????????????????????????????????????????????? | | ??????????????????????????????????????????????? | | ??????????????????????????????????????????????? | | ??????????????????????????????????????????????? | | ??????????????????????????????????????????????? | | ??????????????????????????????????????????????? | | ??????????????????????????????????????????????? | | ??????????????????????????????????????????????? | | ??????????????????????????????????????????????? | | ??????????????????????????????????????????????? | | ??????????????????????????????????????????????? | +----------------------------------------------------+ Best States ------------- Heat Dissipation 28 Energy Generation 14 Energy Capacity 475 Matter Stores 257 Matter Capacity 300 Sight Range 20 Terrain Scan Density 10 Evasion (%) 50 Recoil Reduction 2 Item Schematics ----------------- None Robot Schematics ------------------ None Fabricated ------------ Nothing Alien Tech Used ----------------- None Achievements -------------- Oops Shopping List Challenges ------------ None Game ------ Seed PiercingAblativeMount Manual? 0 Play Time 00:09:23 Cumulative 2.0 hours Start 2024.04.06 @ 00:08:32 End 2024.04.06 @ 00:15:36 Sessions 1 Manual Loads 0 Difficulty Rogue Special Mode None Game No. 6 Rogue 5 Adventurer 1 Explorer 0 Win Type - Total 0 Types 0/0/0/0/0/0/0/0/0 Lore% 1 Gallery% 8 Achievement% 5 Wizard Run 0 Options --------- Layout 1 ASCII 0 Keyboard 0 Movement Arrows Keybinds 0 Fullscreen 1 Font 32/Terminus Map View 50x40 Zoom Use 0% Tactical HUD 0 Map Filters NONE Filters NONE Steam 1 RUN: 69265a89-9a54-4234-85d1-6b6b7e914acb